Cogmind - Beta 16 @@@ ROGUE MODE // 2025.11.17 @ 19:03:26 Player: Mozco Result: Destroyed by Q0-4OL(R) with Subdweller Machine Gun Performance ------------- Evolutions (0) 0 Regions Visited (2) 400 Robots Destroyed (26) 130 Value Destroyed (562) 562 Prototype IDs (0) 0 Alien Tech Used (0) 0 Bonus (0) 0 TOTAL SCORE: 1092 Bonus ------- None Cogmind --------- Core Integrity 0/250 Matter 264/300 Energy 250/250 System Corruption 2% Temperature Cool (0) Movement Walking (260) Ox2 Location -10/Subcaves Parts ------- > --- POWER (1) -------- Ion Engine > --- PROPULSION (2) --- Aluminum Leg > --- UTILITY (2) ------ Large Storage Unit Propulsion Shielding > --- WEAPON (2) ------- Subdweller Machine Gun > --- INVENTORY (15) --- Light Ion Engine Aluminum Leg Aluminum Leg Aluminum Leg Aluminum Leg Aluminum Leg Structural Scanner Scrap Shield Small Laser Grenade Launcher Subdweller Shrapnel Launcher Flamer Enhanced Flamer Makeshift Axe Peak State ------------ > --- POWER ------------ Ion Engine > --- PROPULSION ------- Aluminum Leg Aluminum Leg > --- UTILITY ---------- Large Storage Unit Propulsion Shielding > --- WEAPON ----------- Subdweller Machine Gun Barrage Gun > --- INVENTORY -------- Light Ion Engine Aluminum Leg Aluminum Leg Aluminum Leg Aluminum Leg Aluminum Leg Aluminum Leg Structural Scanner Propulsion Shielding Small Laser Grenade Launcher Subdweller Shrapnel Launcher Flamer Enhanced Flamer Makeshift Axe [Rating: 12] Favorites ----------- Power Ion Engine Engine Ion Engine Propulsion Aluminum Leg Leg Aluminum Leg Utility Large Storage Unit Device Structural Scanner Storage Large Storage Unit Protection Propulsion Shielding Weapon Small Laser Energy Gun Small Laser Ballistic Gun Subdweller Machine Gun Launcher Grenade Launcher Build | -11 -10 -10 ------- Run | Yrd Mat Sub Slots Evolved . | . . . Power . | . . . Propulsion . | . . . Utility . | . . . Weapon . | . . . Parts Attached 21 | 6 6 9 Power 2 | 1 . 1 Engine 2 | 1 . 1 Core . | . . . Reactor . | . . . Propulsion 4 | 2 1 1 Treads . | . . . Leg 4 | 2 1 1 Wheel . | . . . Hover . | . . . Flight . | . . . Utility 5 | 1 3 1 Device 1 | . 1 . Storage 2 | 1 1 . Processor . | . . . Hackware . | . . . Protection 2 | . 1 1 Artifact . | . . . Weapon 10 | 2 2 6 Energy Gun 6 | 2 . 4 Energy Cannon . | . . . Ballistic Gun 3 | . 1 2 Ballistic Cannon . | . . . Launcher 1 | . 1 . Special Weapon . | . . . Impact Weapon . | . . . Slashing Weapon . | . . . Piercing Weapon . | . . . Special Melee Weapon . | . . . Unidentified Prototypes . | . . . Parts Lost 6 | . . 6 Power . | . . . Propulsion 1 | . . 1 Utility 1 | . . 1 Weapon 4 | . . 4 Highest Loss Streak 2 | . . 2 To Critical Strikes . | . . . Average Backups 11 | 1 9 14 Power 1 | . 1 1 Propulsion 3 | . 1 5 Utility 1 | . 1 1 Weapon 4 | . 4 4 Tool/Special . | . . . Unused Backups 10 | . . 10 Power 1 | . . 1 Propulsion 5 | . . 5 Utility . | . . . Weapon 4 | . . 4 Tool/Special . | . . . Average Slot Usage (%) 99 | . 99 99 Engine 14 | . 14 14 Leg 28 | . 28 28 Device 5 | . 9 . Storage 14 | . 14 14 Protection 8 | . 3 14 Energy Gun 18 | . 23 13 Ballistic Gun 8 | . 3 13 Launcher 1 | . 1 . Peak Build Rating 12 | 6 8 12 Average Rating 8 | 4 7 9 On Entrance 4 | . 6 8 Avg Prop Armor Cover (%) . | . . . Naked Turns . | . . . Heaviest Build 33 | 12 31 33 Greatest Support 20 | 20 20 20 Greatest Overweight (x) 2 | 2 1 1 Average Overweight (x) . | . . 1 Largest Inventory Capacity 15 | 8 15 15 Average Capacity 13 | 7 13 15 Most Carried 15 | 2 15 15 Average Carried 11 | 1 9 14 Final Capacity 15 | 8 15 15 Final Carried 15 | 2 15 15 Class Distribution -------------------- 100% | Mutant Dominant Class ---------------- Mutant | -10/Materials Mutant | -10/Subcaves Resources | -11 -10 -10 ----------- Run | Yrd Mat Sub Matter Collected 531 | 165 177 189 Remotely . | . . . Salvage Created 657 | . 447 210 Parts 55 | . 43 12 Haulers Intercepted 2 | . 2 . Recyclers Shooed . | . . . Parts Field Recycled . | . . . Retrieved Matter . | . . . Parts Self-Destructed 16 | . . 16 Prevented . | . . . Parts Restored . | . . . Kills | -11 -10 -10 ------- Run | Yrd Mat Sub Combat Hostiles Destroyed 20 | . 15 5 Guns 14 | . 9 5 AOE 6 | . 6 . Classes Destroyed 9 | . 7 2 Builder 1 | . 1 . Tunneler 1 | . 1 . Hauler 2 | . 2 . Operator 1 | . 1 . Watcher 1 | . 1 . Swarmer 9 | . 9 . Grunt 6 | . 6 . Artisan 1 | . . 1 Subdweller 5 | . . 5 Best Kill Streak 5 | . 5 2 Combat Bots Only 4 | . 4 2 Max Kills in Single Turn 4 | . 4 1 Gunslinging . | . . . Exploded 3 | . 3 . Melee . | . . . Uniques/NPCs Destroyed . | . . . Combat | -11 -10 -10 -------- Run | Yrd Mat Sub Hostile Shots Fired 93 | . 47 46 Missed 25 | . 18 7 Hits 68 | . 29 39 Projectile 68 | . 29 39 AOE 1 | . . 1 Critical Strikes 1 | . . 1 Actively Blocked 1 | . . 1 Damage Taken 1178 | . 319 859 Core 258 | . 82 176 Absorbed by Shields . | . . . Redirected to Shielding 85 | . 5 80 Core Remaining (%) 100 | 100 . . Volleys Fired 70 | . 40 30 Largest 2 | . 2 2 Hottest 100 | . 80 100 Shots Fired 136 | . 80 56 Gun 131 | . 75 56 Cannon . | . . . Launcher 5 | . 5 . Special . | . . . Kinetic 28 | . 5 23 Thermal 94 | . 70 24 Explosive 5 | . 5 . Electromagnetic 9 | . . 9 Robot Hit Streak 19 | . 9 19 Robot Miss Streak 4 | . 4 2 Penetration Max . | . . . Secondary Targets 1 | . . 1 Max Gunslinging Chain 1 | . . 1 Shots Hit Robots 79 | . 36 43 Core Hits 42 | . 29 13 Critical Kills . | . . . Critical Parts Destroyed . | . . . Critical Strikes 1 | . . 1 Burn 1 | . . 1 Melee Attacks . | . . . Impact . | . . . Slashing . | . . . Piercing . | . . . Sneak Attacks . | . . . Combat Hostiles . | . . . Follow-up Attacks . | . . . Damage Inflicted 1332 | . 754 578 Guns 970 | . 392 578 Cannons . | . . . Explosions 359 | . 359 . Melee . | . . . Ramming 3 | . 3 . Kinetic 246 | . . 246 Thermal 631 | . 392 239 Explosive 359 | . 359 . Electromagnetic 93 | . . 93 Impact . | . . . Slashing . | . . . Piercing . | . . . Highest Corruption 2 | . 2 2 Average Corruption 1 | . 1 2 Corruption Purged . | . . . Corruption Blocked . | . . . Effects 25 | . 8 17 Message Errors 8 | . 4 4 Matter Fused 6 | . 2 4 Heat Flow Errors 3 | . 1 2 Parts Rejected 1 | . . 1 Data Loss (minor) 4 | . . 4 Data Loss (major) 2 | . 1 1 Alerts 1 | . . 1 Overload Shots . | . . . Overflow Damage . | . . . Projectiles . | . . . Explosions . | . . . Melee . | . . . Knockbacks . | . . . Impact . | . . . Kinetic . | . . . Secondary . | . . . Self-Inflicted Damage 38 | . 38 . Shots 1 | . 1 . Rammed . | . . . Targets Rammed 1 | . 1 . Kicked 1 | . 1 . Crushed . | . . . Highest Temperature 188 | . 140 188 Average Temperature 41 | . 38 89 Received Heat Transfer 198 | . 96 102 Siege Activations . | . . . Martial Activations . | . . . Shielding Activations . | . . . Robots Disrupted . | . . . Combat Hostiles . | . . . Robots Corrupted . | . . . Combat Hostiles . | . . . Parts Fried 1 | . . 1 Impact Corruptions . | . . . Robots Melted . | . . . Combat Hostiles . | . . . Parts Melted 2 | . . 2 Heat Transferred 1677 | . 900 777 Parts Sabotaged . | . . . Parts Stolen . | . . . Parts Stripped . | . . . Power Chain Reactions . | . . . Alert | -11 -10 -10 ------- Run | Yrd Mat Sub Maximum Alert Level . | . . . Low Security (%) 100 | 100 100 . Level 1 . | . . . Level 2 . | . . . Level 3 . | . . . Level 4 . | . . . Level 5 . | . . . High Security . | . . . Max Security . | . . . Peak Influence 191 | . 191 . Initial . | . . . Average 45 | . 49 . Influence Increases 475 | . 475 . Destroy 0b10 Robot/C 300 | . 300 . Destroy 0b10 Robot/NC 30 | . 30 . Destroy Leader 66 | . 66 . Successful Hack 22 | . 22 . Disable Machine 30 | . 30 . Destroy Structure 27 | . 27 . Influence Decreases 475 | . 292 183 Entered New Map 89 | . . 89 Time Decay 366 | . 292 74 Lost Part 20 | . . 20 Squads Dispatched 4 | . 4 . Investigation 2 | . 2 . Extermination . | . . . Reinforcement 2 | . 2 . Assault . | . . . Garrison . | . . . Intercept . | . . . Searches Triggered . | . . . Construction Impeded . | . . . Haulers Reinforced . | . . . Active Scanning Responses . | . . . Cargo Convoy Interrupts . | . . . Stealth | -11 -10 -10 --------- Run | Yrd Mat Sub Distress Signals 2 | . 2 . Communications Jammed . | . . . Distress Signals . | . . . Times Spotted 30 | . 22 8 Peak Tracking Total 6 | . 6 2 Tactical Retreats . | . . . Traps | -11 -10 -10 ------- Run | Yrd Mat Sub Traps Triggered 1 | . 1 . Indirectly . | . . . Trap Hack Attempts . | . . . Triggered . | . . . Disarmed . | . . . Reprogrammed . | . . . Reused . | . . . Traps Extracted . | . . . Installed . | . . . Triggered . | . . . Machines | -11 -10 -10 ---------- Run | Yrd Mat Sub Machines Disabled 2 | . 2 . Max in Single Turn 1 | . 1 . Machines Repaired . | . . . Machines Dismantled . | . . . Machines Sabotaged . | . . . Overloaded Fab Kills . | . . . Hacking | -11 -10 -10 --------- Run | Yrd Mat Sub Machines Accessed 4 | . 4 . Terminals 4 | . 4 . Fabricators . | . . . Repair Stations . | . . . Recycling Units . | . . . Scanalyzers . | . . . Garrison Access . | . . . Total Hacks 16 | . 16 . Successful 5 | . 5 . Failed 11 | . 11 . Catastrophic 2 | . 2 . Database Lockouts . | . . . Manual 15 | . 15 . Terminals 16 | . 16 . Fabricators . | . . . Repair Stations . | . . . Recycling Units . | . . . Scanalyzers . | . . . Garrison Access . | . . . Terminal Hacks 3 | . 3 . Part Schematic 1 | . 1 . Robot Analysis 2 | . 2 . Fabricator Hacks . | . . . Repair Station Hacks . | . . . Recycling Unit Hacks . | . . . Scanalyzer . | . . . Garrison Access Hacks . | . . . Unauthorized Hacks 2 | . 2 . Terminals 2 | . 2 . Botnet 1 | . 1 . Operators 1 | . 1 . Fabricators . | . . . Repair Stations . | . . . Recycling Units . | . . . Scanalyzers . | . . . Garrison Access . | . . . Data Cores Recovered . | . . . Used . | . . . Hacking Detections 4 | . 4 . Full Trace Events 3 | . 3 . Feedback Events 1 | . 1 . Corruption 1 | . 1 . Feedback Blocked . | . . . Robot Schematics Acquired . | . . . Robots Built . | . . . Authchips . | . . . Time . | . . . Total Robot Build Rating . | . . . Part Schematics Acquired 1 | . 1 . Parts Built . | . . . Authchips . | . . . Time . | . . . Total Part Build Rating . | . . . Part Studies Acquired . | . . . Parts Repaired . | . . . Time . | . . . Parts Recycled . | . . . Recycled Matter . | . . . Retrieved Matter . | . . . Retrieved Components . | . . . Parts Scanalyzed . | . . . Part Schematics Acquired . | . . . Parts Damaged . | . . . Bothacking | -11 -10 -10 ------------ Run | Yrd Mat Sub Used RIF Installer . | . . . Robots Hacked . | . . . Non-combat . | . . . Combat . | . . . Robot Hacks Applied . | . . . Relay Couplers Released . | . . . Fabnet Peak Effective % . | . . . Robots Rewired . | . . . Allies Hacked . | . . . Hacks Repelled . | . . . Allies | -11 -10 -10 -------- Run | Yrd Mat Sub Total Allies . | . . . Largest Group . | . . . Highest-Rated Group . | . . . Highest-Rated Ally . | . . . Total Orders . | . . . Ally Attacks . | . . . Total Damage . | . . . Kills . | . . . Allies Corrupted . | . . . Allies Melted . | . . . Intel | -11 -10 -10 ------- Run | Yrd Mat Sub Active Infowar (turns) 559 | . 559 . Structural 559 | . 559 . Robot Analysis Total 2 | . 2 . Derelict Logs Recovered . | . . . Drone Launches . | . . . Drone Recoveries . | . . . Exploration | -11 -10 -10 ------------- Run | Yrd Mat Sub Turns Passed 1586 | 58 790 738 Spaces Moved 757 | 41 385 331 Core 8 | 8 . . Treads . | . . . Legs 749 | 33 385 331 Wheels . | . . . Hover . | . . . Flight . | . . . Fastest Speed 50 | 50 120 190 Average Speed 174 | 117 167 190 Slowest Speed 190 | 150 190 190 Overloaded Moves . | . . . Propulsion Burnouts . | . . . Robots Hopped . | . . . Potential Cave-ins . | . . . Cave-ins Triggered . | . . . Exploration Rate (%) 24 | 4 54 16 Regions Visited 2 Branch Regions 1 Pre-discovered Areas . | . . . Known Exits Taken . | . . . Unknown Exits Taken 2 | 1 1 . Scrap Searched 5 | . . 5 Spaces Dug . | . . . Terrain Destroyed 30 | . 30 . Melee . | . . . Projectile . | . . . AOE 30 | . 30 . Terrain Rammed . | . . . Walls Destroyed . | . . . Machines Disabled . | . . . Actions | -11 -10 -10 --------- Run | Yrd Mat Sub Total 882 | 48 449 385 Wait 7 | . 1 6 Move 755 | 40 384 331 Hop . | . . . Pick Up 21 | 2 14 5 Fast Attach 8 | 6 1 1 Attach 6 | . 1 5 Detach . | . . . Swap 8 | . 4 4 Drop 6 | . 3 3 Fire 70 | . 40 30 Melee . | . . . Ram . | . . . Kick 1 | . 1 . Crush . | . . . Escape Stasis . | . . . Rewire . | . . . Trap . | . . . Miscellaneous . | . . . Route ------- -11/Scrapyard -10/Materials (discovered 4 exits: [*Mat x2] / [*Min] / [*Sub]) -10/Subcaves History --------- Turn | Location | Event 25 | -11/Scrapyard | Discovered new exit (range 14) 59 | -11/Scrapyard | Entered Materials 199 | -10/Materials | Discovered new exit (range 15) 310 | -10/Materials | Build established: Mutant 335 | -10/Materials | Discovered new exit (range 9) 490 | -10/Materials | Discovered new exit (range 15) 645 | -10/Materials | Discovered new exit (range 9) 849 | -10/Materials | Entered Subcaves 919 | -10/Subcaves | Core integrity fell below 50% 1200 | -10/Subcaves | Core integrity fell below 20% 1514 | -10/Subcaves | Shifting Twisted Machinery released Sub. Machine Gun 1521 | -10/Subcaves | Ambushed by angry Subdweller bent on revenge 1572 | -10/Subcaves | Shifting Twisted Machinery released Battle Cannon 1587 | -10/Subcaves | Destroyed by Q0-4OL(R) with Subdweller Machine Gun Last Messages --------------- 01357_ System corrupted: Heat flow error (+228). 01375_ System corrupted: Matter fused (-9). 01410_ System corrupted: Component data lost. 01438_ System corrupted: IFF burst signal emitted. 01486_ EYM WIB MPKHY Sub. Machine Gun falls loose from the Twisted Machinery. 01519_ 5Q-2IO(u) cries out in pain. 01519_ 5Q-2IO(u) destroyed. 01521_ 8P-XYX(R) angrily emerges from the Twisted Machinery. 01521_ 8P-XYX(R): "ECOKILL!" 01531_ Propulsion Shielding destroyed. 01532_ System corrupted: Aluminum Leg rejected. 01541_ 8P-XYX(R) destroyed. 01546_ Acquired 18 matter. 01548_ System corrupted: Component data lost. 01549_ Acquired 22 matter. 01555_ Acquired Scrap Shield. Battle Cannon falls loose from the Twisted Machinery. 01579_ Barrage Gun destroyed. 01580_ Aluminum Leg destroyed. Map ----- +----------------------------------------------------+ | ?????????????????????????????????????????????????? | | ?????????????????????????????????????????????????? | | ?????????????????????????????????????????????????? | | ?????????????????????????????????????????????????? | | ?????????????????????????????????????????????????? | | ?????????????????????????????????????????????????? | | ?????????????????????????????????????????????????? | | ?????????????????????????????????????????????????? | | ?????????????????????????????????????????????????? | | ?????????????????????????????????????????????????? | | ?????????????????????????????????????????????????? | | ?????????????????????????????????????????????????? | | ?????????????????????????????????????????????????? | | ?????????????????????????????????????????????????? | | ?????????????????????????????????????????????????? | | ?####????????????????????????????????????????????? | | ?# ##?????????????????????"?????????????????????? | | ## #????????????????????""?#???????????????????? | | ## #????????????????????"" #???????????????????? | | #???????????????????? "" #???????????????????? | | #????????????????#### ""#?????? "????????????? | | ##????????#####?### "#?????? ?????????????? | | ##??#######"""### "#?#### ??????????????? | | ####"#= # " "" ### " ???????????????? | | " * "## " # R """ #????????????? | | #### " " "= & ####"""@ R" #?????????????????? | | ???# # ## "#![" ##""""" " #?????????????????? | | ???## ##########""""" "### ""##?????????????????? | | ###?###????????##""" ##??#####??????????????????? | | ###???????????##" ##??????????????????????????? | | #?????????????####???????????????????????????? | | ##????????????????????????????????????????????? | | ####?????????????????????????????????????????????? | | ?????????????????????????????????????????????????? | | ?????????????????????????????????????????????????? | | ?????????????????????????????????????????????????? | | ?????????????????????????????????????????????????? | | ?????????????????????????????????????????????????? | | ?????????????????????????????????????????????????? | | ?????????????????????????????????????????????????? | | ?????????????????????????????????????????????????? | | ?????????????????????????????????????????????????? | | ?????????????????????????????????????????????????? | | ?????????????????????????????????????????????????? | | ?????????????????????????????????????????????????? | | ?????????????????????????????????????????????????? | | ?????????????????????????????????????????????????? | | | | | | | +----------------------------------------------------+ Best States ------------- Heat Dissipation 25 Energy Generation 10 Energy Capacity 250 Matter Stores 300 Matter Capacity 300 Sight Range 16 Terrain Scan Density 10 Propulsion Shielding 33 Evasion (%) 55 Item Schematics ----------------- Hcp. Storage Unit | -10/Materials | Hacked Robot Schematics ------------------ None Fabricated ------------ Nothing Repaired ---------- Nothing Studied --------- None Alien Tech Used ----------------- None Achievements -------------- None Challenges ------------ None Game ------ Seed TeslaCompactBay Manual? 0 Play Time 00:11:01 Cumulative 281.9 hours Start 2025.11.17 @ 18:52:32 End 2025.11.17 @ 19:03:26 Sessions 1 Manual Loads 0 Difficulty Rogue Special Mode None Game No. 304 Rogue 300 Adventurer 3 Explorer 1 Win Type - Total 1 Types 1/0/0/0/0/0/0/0/0/0 Lore% 78 Gallery% 76 Achievement% 60 Wizard Run 0 Options --------- Layout 0 ASCII 0 Keyboard 0 Movement Mouse Keybinds 0 Fullscreen 2 Font 18/SmallcapsGlow Map View 76x50 Zoom Use 0% Tactical HUD 1 Map Filters NONE Filters NONE Steam 1 RUN: 034dabec-2c77-45cb-bfa7-17d225160a5a